[Event "Austrian Championship 2022"]
[Site "Vienna"]
[Date "2022.08.13"]
[Round "2.9"]
[White "Kilgus, Georg"]
[Black "Gschiel, Alexander"]
[Result "1-0"]
[ECO "A13"]
[WhiteElo "2386"]
[BlackElo "2215"]
[Annotator "TA"]
[PlyCount "73"]
[EventDate "2022.08.12"]
[EventType "swiss"]
[EventCountry "AUT"]
[SourceTitle "playchess.com"]
[Source "ChessBase"]
[SourceQuality "1"]
[TimeControl "40/5400+30:1800+30"]

{[%evp 10,73,9,4,25,21,47,39,81,74,77,73,84,73,69,63,66,71,98,51,54,52,86,27,101,86,89,72,92,109,108,84,89,36,35,39,61,26,99,90,121,134,114,121,131,118,211,136,237,242,235,241,219,231,630,618,696,649,795,776,1469,1375,1805,1779,29989,29990]} 1. Nf3 {[%emt 0:00:03]} d5 {[%emt 0:00:17]} 2. e3 {[%emt 0:00:04]} Nf6 {[%emt 0:00:23]} 3. c4 {[%emt 0:00:03]} e6 {[%emt 0:00:34]} 4. Nc3 {[%emt 0:01:53]} Be7 {[%emt 0:01:10]} 5. b3 {[%emt 0:00:14]} O-O {[%emt 0:00:53]} 6. Bb2 {[%emt 0:00:02]} c6 {A13: English Opening: 1...e6.} 7. d4 {[%emt 0:11:26]} Qa5 {[%emt 0:23:29]} 8. Bd3 {[%emt 0:12:11] [#]} c5 $146 {[%emt 0:06:52] White is slightly better.} ({Predecessor:} 8... h6 9. O-O Nbd7 10. Re1 Nh7 11. e4 dxe4 12. Nxe4 Ndf6 13. Ne5 Nxe4 14. Rxe4 Nf6 {1-0 (38) Jankovic,U (1864)-Carapic,S (1926) Knic 2019}) 9. O-O {[%emt 0:08:50]} cxd4 {[%emt 0:04:48]} 10. exd4 {[%emt 0:00:14]} dxc4 {[%emt 0:11:28]} 11. bxc4 {[%emt 0:00:09]} Ba3 {[%emt 0:00:28]} 12. Bxa3 {[%emt 0:07:10]} Qxa3 {[%emt 0:00:02]} 13. Qd2 {[%emt 0:10:56]} Nc6 {[%emt 0:03:02]} 14. Rab1 {[%emt 0:02:49]} (14. Rfe1 $16) 14... Rd8 {[%emt 0:05:57]} 15. Ne4 {[%emt 0:02:07]} Qe7 {[%emt 0:05:21] [#]} 16. Rfd1 {[%emt 0:08:41]} ({White should play} 16. Qc3 $1 $16) 16... Kh8 {[%emt 0:04:55]} (16... b6 $11) 17. Qe3 {[%emt 0:03:09]} Ng4 {[%emt 0:05:55] Against Ne5} 18. Qg5 {[%emt 0:02:09]} Qxg5 {[%emt 0:01:48]} 19. Nexg5 {[%emt 0:01:15]} (19. Nfxg5 Nh6 $14) 19... Nh6 {[%emt 0:00:09]} 20. Be4 {[%emt 0:05:22] Ne5 is the strong threat.} ({Inferior is} 20. Bxh7 f6 $15) 20... f6 {[%emt 0:01:09] [#] Prevents Ne5.} 21. Bxc6 {[%emt 0:00:04] White is much more active.} ({But not} 21. Nxh7 $6 Na5 $11) ({White should try} 21. d5 $1 $16 {[%cal Rd5c6]} exd5 22. cxd5) 21... bxc6 $14 {[%emt 0:00:25]} 22. Ne4 {[%emt 0:00:01]} Ba6 {[%emt 0:00:40]} 23. Rdc1 Rab8 (23... Bc8 $11 {remains equal.}) 24. Rb3 $16 Nf5 25. Nc5 {[%csl LRa6,LRe6]} Rxb3 26. axb3 Bc8 27. Ra1 g5 (27... a6 $16) 28. h3 ({Resist} 28. Rxa7 $6 g4 $16) 28... h5 (28... a6 $16) 29. Rxa7 $18 {Black must now prevent Ne4.} g4 30. hxg4 hxg4 31. Nd2 {aiming for Nde4.} Rxd4 (31... e5 32. Nde4 Nxd4 33. Nxf6 Bf5) 32. Nde4 Rd1+ 33. Kh2 g3+ 34. fxg3 {[%cal Bf2g3,Bg3g4][%mdl 32]} Ne3 35. Nxf6 {[%csl Gf6][%cal Ra7h7]} Nf1+ 36. Kh3 {[%csl Gf6][%cal Ra7h7]} e5+ 37. g4 {[%emt 0:11:50] Weighted Error Value: White=0.13 (very precise) /Black=0.57} 1-0

[Event "Austrian Championship 2022"]
[Site "Vienna"]
[Date "2022.08.13"]
[Round "2.10"]
[White "Bauer, Thomas"]
[Black "Sadilek, Peter"]
[Result "0-1"]
[ECO "A43"]
[WhiteElo "2228"]
[BlackElo "2330"]
[Annotator "TA"]
[PlyCount "118"]
[EventDate "2022.08.12"]
[EventType "swiss"]
[EventCountry "AUT"]
[SourceTitle "playchess.com"]
[Source "ChessBase"]
[SourceQuality "1"]
[TimeControl "40/5400+30:1800+30"]

{[%evp 9,118,34,33,0,22,20,36,45,54,33,38,39,55,50,79,70,77,93,117,117,118,108,115,99,136,138,137,145,142,115,120,114,129,131,185,185,183,162,172,167,177,182,183,187,186,38,52,52,51,8,8,0,0,0,8,0,0,0,100,97,108,116,128,128,128,128,129,129,139,-20,0,-58,141,137,117,91,355,356,300,198,239,228,379,0,0,0,0,-237,0,0,0,0,8,-737,-776,-780,-769,-739,-722,-29986,-29987,-29987,-29986,-29993,-29994,-29994,-29995,-29996,-29997,-29997,-29998]} 1. e4 {[%emt 0:00:01]} c5 {[%emt 0:04:51]} 2. Nc3 {[%emt 0:01:19]} g6 {[%emt 0:01:10]} 3. d4 {[%emt 0:00:16]} Bg7 {[%emt 0:01:31]} 4. d5 {[%emt 0:01:29]} d6 {[%emt 0:00:36]} 5. Be2 {[%emt 0:01:40]} Nf6 {[%emt 0:02:03]} 6. Be3 {[%emt 0:04:38] A43: Schmid Benoni.} a6 {[%emt 0:01:32]} 7. a4 {[%emt 0:01:18]} Qa5 {[%emt 0:02:36]} 8. Bd2 {[%emt 0:03:46] White is slightly better.} Qc7 {[%emt 0:07:30]} 9. h3 {[%emt 0:01:23]} O-O {[%emt 0:03:05]} 10. Nf3 {[%emt 0:00:34]} Nbd7 {[%emt 0:07:27] [#]} 11. O-O $146 {[%emt 0:00:03]} ({Predecessor:} 11. Bf4 Qa5 12. O-O Nh5 13. Bg5 Re8 14. Nd2 Nhf6 15. Ra3 Qc7 16. f4 Nf8 17. Nc4 {1-0 (36) Galonska,J (2105)-Schwarz,W (1800) Seefeld 1993}) 11... Rb8 {[%emt 0:01:16]} 12. a5 {[%emt 0:05:06]} b5 {[%emt 0:11:50]} 13. axb6 $1 {[%emt 0:00:03]} Rxb6 {[%emt 0:00:55]} 14. b3 {[%emt 0:08:17]} Rb4 {[%emt 0:07:41]} 15. Bd3 {[%emt 0:04:03]} (15. Bxa6 $6 Nxe4 16. Nxe4 Rxe4 $11) 15... Nh5 {[%emt 0:06:42]} 16. Ra2 {[%emt 0:07:07]} Nf4 {[%emt 0:06:11]} 17. Bxf4 {[%emt 0:00:04]} Bxc3 {[%emt 0:00:05]} 18. Bd2 {[%emt 0:00:47]} Bxd2 {[%emt 0:00:43]} 19. Nxd2 {[%emt 0:05:37]} Ne5 {[%emt 0:09:14]} 20. Be2 {[%emt 0:09:27]} a5 {[%emt 0:12:22]} 21. Qa1 {[%emt 0:06:34]} f5 {[%emt 0:03:23]} (21... e6 $16) 22. f4 $18 {[%emt 0:04:38]} (22. Rxa5 $6 fxe4 23. Ra7 Rb7 $16) 22... Nf7 {[%emt 0:00:02]} 23. exf5 {[%emt 0:02:36]} Bxf5 {[%emt 0:00:03]} 24. c3 {[%emt 0:00:38]} Rbb8 {[%emt 0:00:30]} 25. Rxa5 Qb7 26. Bc4 {[%emt 0:08:08]} Ra8 {[%emt 0:03:50]} 27. Re1 {[%emt 0:00:01]} (27. Rxa8 $18 Rxa8 28. Qe1) 27... Rxa5 $14 {[%emt 0:01:39]} 28. Qxa5 {[%emt 0:00:02]} Ra8 $1 {[%emt 0:01:11]} 29. Qb5 {[%emt 0:02:28]} (29. Rxe7 $5 Qxe7 30. Qxa8+ Kg7 31. Nf1 $14) 29... Qa7 {[%emt 0:00:45]} 30. Qa4 {[%emt 0:04:48]} Qb8 {[%emt 0:01:56]} 31. Qb5 {[%emt 0:10:21] [#] And now Qxb8+ would win.} Qa7 {[%emt 0:00:04]} 32. Qa4 {[%emt 0:05:25]} (32. Bf1 {seems wilder.} c4+ 33. Kh2 Qf2 34. Nf3) 32... Qb8 $1 {[%emt 0:00:06]} 33. Qc6 {[%emt 0:00:32] Black must now prevent g4.} Qd8 {[%emt 0:01:47]} (33... Ra7 $11 34. Qb5 Rb7) 34. Bf1 $16 {[%emt 0:02:07][%cal Bc4f1,Bf1b5,Bb5c6][%mdl 32]} Bd7 {[%emt 0:01:37]} 35. Qb7 {[%emt 0:00:02]} Kf8 {[%emt 0:01:14]} 36. Bb5 {[%emt 0:01:24]} Bf5 {[%emt 0:00:26]} 37. Bc6 {[%emt 0:01:17]} Ra2 {[%emt 0:00:30]} 38. Nc4 {[%emt 0:00:45][%cal Bd2c4,Bc4b6,Bb6d7][%mdl 32]} Bd3 {[%emt 0:00:33]} 39. Qb6 $2 {[%emt 0:00:43]} (39. Nb6 $16) 39... Qc8 {[%emt 0:00:23][%mdl 1024] Black has compensation.} 40. Qb7 {[%emt 0:00:31]} ({White should play} 40. Re6 $11) 40... Qd8 $2 {[%emt 0:00:34]} (40... Qxb7 $15 {keeps the upper hand.} 41. Bxb7 Rc2) 41. Nb6 {[%emt 0:04:22]} Nh6 {[%emt 0:11:40]} 42. g4 {[%emt 0:11:07] Inhibits Nf5.} g5 $2 {[%emt 0:10:32][%mdl 8192]} (42... Ng8 $16) 43. Nd7+ $18 {[%emt 0:03:26]} (43. fxg5 Nf7 $18) 43... Kg8 {[%emt 0:04:03]} 44. fxg5 {[%emt 0:01:49]} Nf7 {[%emt 0:00:36]} 45. Re3 {[%emt 0:04:00]} c4 {[%emt 0:03:30]} (45... Ba6 {was necessary.} 46. Qb6 (46. Qb8 Qxb8 47. Nxb8 Be2 $16) 46... Qxb6 47. Nxb6 Ne5) 46. b4 $2 {[%emt 0:05:41]} (46. bxc4 $18 Rd2 47. h4) 46... Nxg5 $11 {[%emt 0:01:33]} 47. b5 {[%emt 0:01:12] Hoping for b6.} Ne4 {[%emt 0:00:33]} 48. Re1 $2 {[%emt 0:01:37]} ({But not} 48. Qb8 $2 Qxb8 49. Nxb8 Nxc3 $19) (48. h4 $11) 48... Nf2 $2 {[%emt 0:01:37]} (48... Nxc3 $2 49. b6 e5 50. Qc7 $18) ({Better is} 48... Kg7 $19 {Threatens to win with ...Ng5.} 49. Qb8 Ng5) 49. Re3 {[%emt 0:01:04] b6 is the strong threat.} Ne4 {[%emt 0:00:29][%cal Bf2e4,Be4c3,Bc3e2][%mdl 32]} 50. h4 {[%emt 0:00:21]} ({Not} 50. Qb8 $2 Qxb8 51. Nxb8 Nxc3 $19) 50... Nxc3 $40 {[%emt 0:00:24][%mdl 128] Strongly threatening ...Ne2+. Black is up to no good.} 51. Qb8 $2 {[%emt 0:00:49][%mdl 8192]} (51. b6 $11 Ne4 52. Rxe4 Bxe4 53. Qc7) 51... Qxb8 $19 {[%emt 0:00:07]} 52. Nxb8 {[%emt 0:00:01]} Ne2+ {[%emt 0:00:37]} 53. Kf2 {[%emt 0:00:14] [#]} c3 $1 {[%emt 0:00:47] ( -> ...c2)} 54. Rxe7 {[%emt 0:01:15]} (54. Rxd3 c2) 54... c2 {[%emt 0:00:21] Black mates.} 55. Re8+ {[%emt 0:00:33]} Kf7 {[%emt 0:00:31]} 56. Rd8 {[%emt 0:00:28]} c1=Q {[%emt 0:00:31]} 57. Rd7+ {[%emt 0:00:31]} Kf6 {[%emt 0:00:23]} 58. Rxd6+ {[%emt 0:00:31]} Ke5 {[%emt 0:00:12]} 59. Re6+ {[%emt 0:00:29]} Kd4 {[%emt 0:00:15] A wild game.  Weighted Error Value: White=0.49/Black=0.31} 0-1

[Event "Austrian Championship 2022"]
[Site "Vienna"]
[Date "2022.08.13"]
[Round "2.11"]
[White "Leitner, Gerald"]
[Black "Borrmann, Laurenz"]
[Result "0-1"]
[ECO "A21"]
[WhiteElo "2145"]
[BlackElo "2274"]
[Annotator "TA"]
[PlyCount "90"]
[EventDate "2022.08.12"]
[EventType "swiss"]
[EventCountry "AUT"]
[SourceTitle "playchess.com"]
[Source "ChessBase"]
[SourceQuality "1"]
[TimeControl "40/5400+30:1800+30"]

{[%evp 13,90,8,11,0,6,0,0,4,5,0,0,0,0,0,24,0,0,-12,-10,-17,-16,-25,0,-8,0,0,0,0,0,-24,-8,-88,-88,-94,-79,-74,-54,-67,-16,-10,0,0,0,-7,43,0,0,-24,0,-12,0,-35,-15,-39,0,0,0,-33,-15,-105,-85,-90,-93,-83,-85,-83,-70,-207,-214,-382,-404,-471,-449,-585,-565,-831,-825,-881,-522]} 1. c4 {[%emt 0:00:31]} e5 {[%emt 0:00:29]} 2. g3 {[%emt 0:00:17]} Be7 {[%emt 0:00:32]} 3. Bg2 {[%emt 0:00:02]} d6 {[%emt 0:00:15]} 4. Nc3 {[%emt 0:00:09]} f5 {[%emt 0:00:18]} 5. d3 {[%emt 0:00:20]} Nf6 {[%emt 0:01:32]} 6. e3 {[%emt 0:06:03]} O-O {[%emt 0:00:59]} 7. Nge2 {[%emt 0:00:01]} c6 {[%emt 0:00:11]} 8. f4 {[%emt 0:04:36] A21: English Opening: 1...e5 2 Nc3.} Be6 {[%emt 0:04:18]} 9. b3 {[%emt 0:04:00]} Nbd7 {[%emt 0:06:19]} 10. O-O {[%emt 0:03:18] The position is equal.} Qe8 {[%emt 0:07:55]} 11. Qd2 {[%emt 0:03:05]} Qh5 {[%emt 0:09:40]} 12. Ba3 {[%emt 0:12:25]} Rae8 {[%emt 0:05:18]} (12... Ng4 13. h3 $16) 13. Rad1 {[%emt 0:04:39] [#]} Kh8 $146 {[%emt 0:11:14]} (13... Ng4 14. h3 Ngf6 15. Bb4) ({Predecessor:} 13... Qh6 14. h3 Nb6 15. Bc1 Bc8 16. Qe1 exf4 17. exf4 Bd8 18. Qf2 Qg6 19. b4 d5 {½-½ (29) Andersson,M (2408)-Manduch,M (2385) ICCF email 2015}) 14. Rfe1 {[%emt 0:00:49]} Qh6 {[%emt 0:03:57]} 15. d4 {[%emt 0:18:28][%cal Oc4c5]} Bf7 {[%emt 0:10:11]} (15... Ng4 16. h3 Ngf6 17. c5 exf4 18. Nxf4 $16) 16. d5 {[%emt 0:05:16]} c5 {[%emt 0:00:48]} (16... Ng4 $2 17. h3 Ngf6 18. dxc6 bxc6 19. Bxd6 $18) 17. Nb5 {[%emt 0:06:27][%cal Bc3b5,Bb5c7,Bc7e6,Be6g5][%mdl 32]} a6 {[%emt 0:00:34]} ({Reject} 17... Ng4 18. h3 Ngf6 19. Nc7 $14) (17... exf4 18. exf4 Ne4 19. Bxe4 fxe4 20. Nec3 $16) 18. Nc7 {[%emt 0:00:09]} Rc8 $36 {[%emt 0:00:46][%mdl 2048] White is under pressure.} 19. Ne6 {[%emt 0:00:02]} Rfe8 {[%emt 0:01:05]} 20. Nc3 {[%emt 0:00:50]} e4 {[%emt 0:02:53]} ({Don't play} 20... exf4 21. exf4 Ng4 22. h3 $16) 21. Ng5 {[%emt 0:01:05]} Bh5 {[%emt 0:00:52]} 22. Bf1 {[%emt 0:00:52] [#]} Ng8 $1 $17 {[%emt 0:02:11]} 23. h4 {[%emt 0:01:45][%cal Og3g4,Bh2h4,Bh4h5][%mdl 32]} Qg6 {[%emt 0:01:21] Hoping for ...h6.} 24. Be2 {[%emt 0:00:30]} Bxe2 {[%emt 0:01:24]} 25. Qxe2 {[%emt 0:00:02]} h6 {[%emt 0:00:35]} (25... Ngf6 $15) 26. h5 $11 {[%emt 0:01:34]} Qf6 {[%emt 0:00:12]} 27. Ne6 {[%emt 0:00:03][%cal Og3g4]} Qf7 $1 {[%emt 0:10:21]} 28. g4 {[%emt 0:06:47] And now gxf5 would win.} Nf8 {[%emt 0:00:19]} (28... Bh4 $1 $11) 29. gxf5 {[%emt 0:03:42]} (29. g5 $5 {[%cal Rg5g6]}) 29... Qxf5 {[%emt 0:00:26]} 30. Nxf8 {[%emt 0:01:02]} (30. Qg2 $5 {[%cal Rg2g7]} Nxe6 31. dxe6 $11) 30... Bxf8 {[%emt 0:00:16]} 31. Kg2 {[%emt 0:01:05]} Nf6 {[%emt 0:01:30]} 32. Rh1 {[%emt 0:00:04]} (32. Bb2 $5 {[%cal Re1h1]}) 32... b5 {[%emt 0:01:40]} 33. Bb2 {[%emt 0:00:43]} ({Much worse is} 33. cxb5 axb5 34. Nxb5 Ra8 $17) 33... bxc4 {[%emt 0:01:46]} (33... Rb8 $5 {[%cal Rb5c4]}) 34. bxc4 {[%emt 0:00:01]} Rb8 {[%emt 0:00:13]} 35. Ba1 {[%emt 0:00:03]} Rb4 {[%emt 0:00:19]} 36. Rh2 {[%emt 0:04:15]} (36. Rc1 $11 {keeps the balance.}) 36... Qg4+ $17 {[%emt 0:02:11]} 37. Qxg4 {[%emt 0:02:23]} Nxg4 {[%emt 0:00:07]} 38. Rh3 {[%emt 0:00:01]} Rxc4 {[%emt 0:01:38] Black is more active.} 39. Rb1 {[%emt 0:05:45]} Rb4 {[%emt 0:00:30]} (39... Kh7 {keeps more tension.} 40. Rb7 Re7 41. Rb8 Kg8) 40. Rxb4 {[%emt 0:00:49] This move loses the game for White.} (40. a3 $1 $15 Rc4 41. Rb7) 40... cxb4 $19 {[%emt 0:00:07]} 41. Ne2 {[%emt 0:30:08] [#]} (41. Na4 {is a better defense.}) 41... Rc8 $1 {[%emt 0:31:42] Strongly threatening ...Rc2.} 42. Rg3 {[%emt 0:01:17]} Rc2 $1 {[%emt 0:00:27][%csl LRa2,LRe2] Black is clearly winning.} 43. Kf1 {[%emt 0:00:39]} Nh2+ {[%emt 0:00:08]} 44. Ke1 {[%emt 0:00:01]} Nf3+ {[%emt 0:00:08]} 45. Kd1 {[%emt 0:00:01]} Rd2+ {[%emt 0:02:09] Weighted Error Value: White=0.35/Black=0.09 (flawless)} 0-1

[Event "Austrian Championship 2022"]
[Site "Vienna"]
[Date "2022.08.13"]
[Round "2.12"]
[White "Ganaus, Hannes"]
[Black "Scheffknecht, Philipp"]
[Result "1/2-1/2"]
[ECO "D04"]
[WhiteElo "2284"]
[BlackElo "2093"]
[Annotator "TA"]
[PlyCount "30"]
[EventDate "2022.08.12"]
[EventType "swiss"]
[EventCountry "AUT"]
[SourceTitle "playchess.com"]
[Source "ChessBase"]
[SourceQuality "1"]
[TimeControl "40/5400+30:1800+30"]

{[%evp 10,30,14,20,30,19,50,44,56,47,56,48,46,46,81,54,57,65,59,40,26,0,0]} 1. d4 {[%emt 0:00:05]} Nf6 {[%emt 0:00:21]} 2. Nf3 {[%emt 0:00:35]} g6 {[%emt 0:00:22]} 3. Nbd2 {[%emt 0:03:23]} d5 {[%emt 0:00:27]} 4. b3 {[%emt 0:00:44]} Bg7 {[%emt 0:00:52]} 5. Bb2 {[%emt 0:00:05]} O-O {[%emt 0:00:55]} 6. e3 {[%emt 0:00:28]} a5 {[%emt 0:08:23] D04: Colle System.} 7. Be2 {[%emt 0:01:37] [#]} Nfd7 $146 {[%emt 0:09:57]} ({Predecessor:} 7... a4 8. bxa4 Rxa4 9. c4 Ra7 10. O-O c6 11. a4 Bf5 12. Ba3 Ne4 13. Nxe4 Bxe4 {1-0 (41) Manolache,M (2469)-Villar Perez,S (2188) Pontevedra 2022}) 8. c4 {[%emt 0:12:17]} e6 {[%emt 0:07:57] White is slightly better.} 9. Qc2 {[%emt 0:01:43]} Na6 {[%emt 0:03:00]} 10. a3 {[%emt 0:00:15]} c5 {[%emt 0:04:19]} 11. dxc5 {[%emt 0:02:52] Strongly threatening Bxg7.} Naxc5 {[%emt 0:04:49]} 12. O-O {[%emt 0:02:51]} Bxb2 {[%emt 0:07:51]} 13. Qxb2 {[%emt 1:10:05]} Qf6 {[%emt 0:01:26]} 14. Qxf6 {[%emt 0:00:00]} Nxf6 {[%emt 0:00:14]} 15. cxd5 {[%emt 0:00:00]} Nxd5 {[%emt 0:06:56] Weighted Error Value: White=0.10 (very precise) /Black=0.11 (very precise)} 1/2-1/2

[Event "Austrian Championship 2022"]
[Site "Vienna"]
[Date "2022.08.13"]
[Round "2.13"]
[White "Balinov, Ilia"]
[Black "Wagner, Leopold Franziskus"]
[Result "1-0"]
[ECO "A26"]
[WhiteElo "2419"]
[BlackElo "2080"]
[Annotator "TA"]
[PlyCount "95"]
[EventDate "2022.08.12"]
[EventType "swiss"]
[EventCountry "AUT"]
[SourceTitle "playchess.com"]
[Source "ChessBase"]
[SourceQuality "1"]
[TimeControl "40/5400+30:1800+30"]

{[%evp 16,95,8,9,58,66,56,51,51,51,85,54,108,43,151,119,127,54,159,97,91,78,97,100,139,128,137,143,135,134,130,107,117,90,117,117,117,117,148,131,130,115,131,129,122,124,122,122,245,121,122,122,122,8,36,9,42,0,0,0,0,0,29,0,122,120,122,122,232,230,230,229,227,214,259,258,258,111,6079,6079,5069,4133]} 1. c4 {[%emt 0:00:02]} e5 {[%emt 0:00:47]} 2. g3 {[%emt 0:00:04]} g6 {[%emt 0:01:23]} 3. Bg2 {[%emt 0:00:06]} Bg7 {[%emt 0:00:03]} 4. Nc3 {[%emt 0:00:05]} Ne7 {[%emt 0:00:39]} 5. Nf3 {[%emt 0:01:58]} Nbc6 {[%emt 0:01:46]} 6. O-O {[%emt 0:00:30]} O-O {[%emt 0:00:48]} 7. d3 {[%emt 0:00:16]} d6 {[%emt 0:04:17]} 8. Rb1 {[%emt 0:00:13]} f5 {[%emt 0:04:25]} 9. Bd2 {[%emt 0:00:24]} Nd4 {[%emt 0:08:29] A26: English Opening vs King's Indian with ...Nc6 and d3.} (9... a5 $11) 10. Nxd4 $14 {[%emt 0:02:29]} exd4 {[%emt 0:00:08]} 11. Nd5 {[%emt 0:00:09] Bg5 is the strong threat.} c6 {[%emt 0:11:08] White is slightly better.} 12. Nf4 {[%emt 0:00:05] [#]} Qe8 $146 {[%emt 0:05:51]} ({Predecessor:} 12... Kh8 13. b4 a6 14. e3 dxe3 15. Bxe3 b5 16. Re1 Bd7 17. Bd2 Ng8 18. Ne6 Bxe6 19. Rxe6 {1-0 (31) Gorkavij,V (2371)-Rjabzev,K (2212) Krasnodar 2011}) 13. e3 {[%emt 0:01:30]} Qf7 {[%emt 0:06:19]} (13... dxe3 $14 14. Bxe3 (14. fxe3 g5 $14) 14... Qf7) 14. Re1 {[%emt 0:02:08]} ({Better is} 14. exd4 $16 {Black must now prevent d5.} Bxd4 15. h4) 14... Bd7 {[%emt 0:03:44]} (14... dxe3 $14 15. Rxe3 Bd4) 15. Qb3 {[%emt 0:11:20]} Rab8 {[%emt 0:04:41]} 16. exd4 {[%emt 0:04:33]} (16. h4 $16) 16... Bxd4 {[%emt 0:01:36]} (16... g5 $1 $14) 17. Be3 {[%emt 0:00:06]} ({White should play} 17. Qa3 Nc8 18. h4) 17... Bxe3 $16 {[%emt 0:03:31]} 18. Rxe3 {[%emt 0:00:19]} g5 {[%emt 0:02:37] [#]} 19. Rbe1 $1 {[%emt 0:00:12] White is more active.} gxf4 {[%emt 0:05:28]} (19... Ng6 20. Nxg6) 20. Rxe7 {[%emt 0:00:14]} Rfe8 {[%emt 0:00:11]} 21. Rxe8+ {[%emt 0:05:54]} Rxe8 {[%emt 0:00:03]} 22. Rxe8+ {[%emt 0:00:04]} Bxe8 {[%emt 0:00:26]} 23. gxf4 {[%emt 0:00:47][%mdl 4096] Endgame KQB-KQB} Qe7 {[%emt 0:07:47]} 24. Qd1 {[%emt 0:00:30] Against Qe1+} Bf7 {[%emt 0:03:31]} 25. b3 {[%emt 0:02:11]} Qf6 {[%emt 0:05:50]} 26. d4 {[%emt 0:00:42]} d5 {[%emt 0:00:39]} 27. cxd5 {[%emt 0:15:29]} Bxd5 {[%emt 0:00:12]} 28. Bxd5+ {[%emt 0:00:09]} cxd5 {[%emt 0:00:30] KQ-KQ} 29. Qe2 {[%emt 0:00:30]} Qxd4 {[%emt 0:00:30]} 30. Qe6+ {[%emt 0:00:30]} Kg7 {[%emt 0:00:30]} 31. Qxf5 {[%emt 0:00:30]} Qd1+ {[%emt 0:00:30]} 32. Kg2 {[%emt 0:00:30]} d4 {[%emt 0:00:30]} 33. Qg5+ $1 {[%emt 0:00:30]} Kf7 {[%emt 0:00:30] [#]} 34. Qd5+ {[%emt 0:00:30]} (34. f5 $1 $16 {[%cal Rf5f6]}) 34... Kf6 {[%emt 0:00:30]} 35. Qd8+ {[%emt 0:00:30]} Kf7 {[%emt 0:00:30]} 36. Qd7+ {[%emt 0:00:30]} Kf6 $1 {[%emt 0:00:30]} 37. Qd6+ {[%emt 0:00:30]} Kf7 $1 {[%emt 0:00:30]} 38. Qd5+ {[%emt 0:00:30]} Kf6 $1 {[%emt 0:00:30]} 39. Qg5+ {[%emt 0:00:30]} (39. Qe5+ $11 Kf7 40. Qd5+) 39... Kf7 $1 {[%emt 0:00:30] [#]} 40. f5 $1 {[%emt 0:00:30] Strongly threatening f6.} Qd3 {[%emt 0:00:30]} 41. Qh5+ {[%emt 0:30:30]} Kf6 {[%emt 0:30:30]} (41... Kg7 $16) 42. Qh6+ $18 {[%emt 0:00:30]} (42. Qxh7 Qe4+ 43. Kg3 Qe5+ 44. Kh3 Qxf5+ 45. Qxf5+ Kxf5 $14) 42... Ke5 {[%emt 0:00:30]} 43. Qg7+ {[%emt 0:00:30]} (43. Qxh7 Qe4+ 44. Kg3 Qf4+ 45. Kg2 Qe4+ 46. Kg3 Qf4+ 47. Kg2 Qe4+ $11) 43... Kf4 {[%emt 0:00:30]} 44. Qxb7 {[%emt 0:00:30]} Qe2 {[%emt 0:00:30]} 45. Qc7+ {[%emt 0:00:30]} (45. Qxa7 Qe4+ 46. f3 Qxf3+ 47. Kg1 Qd1+ 48. Kg2 Qf3+ 49. Kg1 Qd1+ 50. Kg2 Qf3+ $11) (45. Qxh7 Qg4+ 46. Kf1 Qd1+ 47. Kg2 Qg4+ 48. Kf1 Qd1+ 49. Kg2 Qg4+ $11) 45... Kxf5 {[%emt 0:00:30]} 46. Qd7+ {[%emt 0:00:30]} ({Worse is} 46. Qxa7 Qg4+ 47. Kh1 Qf3+ 48. Kg1 Qg4+ 49. Kh1 (49. Kf1 Qd1+ 50. Kg2 Qg4+ 51. Kh1 Qf3+ 52. Kg1 Qg4+ 53. Kh1 $11) 49... Qf3+ 50. Kg1 Qg4+ 51. Kh1 $11 (51. Kf1 Qd1+ 52. Kg2 Qg4+ 53. Kh1 $11)) (46. Qf7+ $18 {has better winning chances.} Kg5 47. Qg7+ (47. Qxa7 Qg4+ 48. Kh1 Qf3+ 49. Kg1 Qg4+ 50. Kf1 Qd1+ 51. Kg2 Qg4+ 52. Kh1 Qf3+ 53. Kg1 Qg4+ 54. Kh1 $11) 47... Kf4 48. Qxd4+ (48. Qf6+ Kg4 $18) 48... Kf5 49. a4 (49. Qxa7 Qg4+ 50. Kh1 Qf3+ 51. Kg1 Qg4+ 52. Kf1 Qd1+ 53. Kg2 Qg4+ 54. Kh1 Qf3+ 55. Kg1 Qg4+ 56. Kf1 Qd1+ 57. Kg2 Qg4+ $11)) 46... Ke4 $2 {[%emt 0:00:30][%mdl 8192]} (46... Kg6 $16) 47. Qe6+ {[%emt 0:00:30]} Kd3 {[%emt 0:00:30]} 48. Qc4+ {[%emt 0:00:30] Weighted Error Value: White=0.20 (precise) /Black=0.20 (precise)} 1-0